fUST/lending_fUST_20251013
["ID","MTS","AMOUNT","RATE_DAILY","PERIOD"]
[391019158,1760292642244,-151.0,0.00026248,2]
[391019159,1760292642254,-199.0,0.00026301,11]
[391019160,1760292642263,-150.91,0.00026302,2]
[391019161,1760292642273,-198.0,0.00026303,2]
[391019162,1760292642282,-151.0,0.00026303,2]
[391019163,1760292642292,-198.0,0.00026303,2]
[391019164,1760292642301,-198.0,0.00026303,2]
[391019165,1760292642311,-151.0,0.00026303,2]
[391019166,1760292642321,-151.0,0.00026303,2]
[391019167,1760292642331,-151.0,0.00026303,2]
[391019168,1760292642341,-151.0,0.00026303,2]
[391019169,1760292642350,-198.0,0.00026357,2]
[391019170,1760292642360,-151.0,0.00026357,2]
[391019171,1760292642370,-206.37404458,0.00026357,2]
[391019172,1760292642382,-198.0,0.00026357,2]
[391019173,1760292642391,-198.0,0.00026357,2]
[391019174,1760292642400,-1193.342098,0.00026387,2]
[391019175,1760292642410,-1344.32072652,0.000264,2]
[391019176,1760292642420,-2202.16656323,0.000264,2]
[391019177,1760292642429,-210.0,0.00026412,2]
[391019178,1760292642439,-250.0,0.00026469,2]
[391019179,1760292642448,-450.0,0.00026516,2]
[391019180,1760292642458,-199.0,0.00026575,12]
[391019181,1760292642468,-453.16983412,0.00026625,2]
[391019182,1760292642477,-860.0,0.00026736,2]
[391019183,1760292642487,-500.0,0.00026835,2]
[391019184,1760292642496,-199.0,0.00026849,13]
[391019185,1760292642506,-500.0,0.00026934,7]
[391019186,1760292642515,-402.2877588,0.00027,3]
[391019187,1760292642525,-450.0,0.00027064,2]
[391019188,1760292642534,-200.0,0.000271,7]
[391019189,1760292642544,-329.11185372,0.00027123,14]
[391019190,1760292642554,-482.09556821,0.00027225,2]
[391019191,1760292642563,-7112.60961872,0.00027275,2]
[391019192,1760292642573,-960.0,0.00027284,2]
[391019193,1760292642583,-150.0,0.00027373,2]
[391019194,1760292642656,-999.0,0.00027397,6]
[391019195,1760292642666,-500.0,0.00027397,60]
[391019196,1760292642675,-500.0,0.00027397,60]
[391019198,1760292642684,-500.0,0.00027397,60]
[391019199,1760292642693,-500.0,0.00027397,60]
[391019201,1760292642701,-500.0,0.00027397,60]
[391019204,1760292642711,-500.0,0.00027397,60]
[391019205,1760292642720,-500.0,0.00027397,60]
[391019206,1760292642729,-500.0,0.00027397,60]
[391019207,1760292642738,-500.0,0.00027397,60]
[391019208,1760292642747,-500.0,0.00027397,60]
[391019209,1760292642759,-567.68992436,0.00027397,60]
[391019210,1760292642769,-500.0,0.00027397,60]
[391019211,1760292642778,-500.0,0.00027397,60]
[391019213,1760292642787,-500.0,0.00027397,60]
[391019215,1760292642796,-500.0,0.00027397,60]
[391019216,1760292642805,-500.0,0.00027397,60]
[391019217,1760292642814,-500.0,0.00027397,60]
[391019218,1760292642823,-500.0,0.00027397,60]
[391019219,1760292642832,-500.0,0.00027397,60]
[391019220,1760292642841,-500.0,0.00027397,60]
[391019221,1760292642854,-168.94653461,0.00027397,60]
[391019222,1760292642864,-500.0,0.00027397,2]
[391019223,1760292642873,-500.0,0.00027397,2]
[391019224,1760292642884,-528.87535178,0.00027397,2]
[391019225,1760292642895,-327.53727812,0.00027397,2]
[391019226,1760292642904,-500.0,0.00027397,2]
[391019227,1760292642913,-500.0,0.00027397,2]
[391019229,1760292642922,-500.0,0.00027397,2]
[391019230,1760292642933,-638.762,0.00027397,2]
[391019231,1760292642943,-500.0,0.00027397,60]
[391019232,1760292642952,-500.0,0.00027397,60]
[391019233,1760292642961,-500.0,0.00027397,60]
[391019234,1760292642971,-500.0,0.00027397,60]
[391019235,1760292642979,-500.0,0.00027397,60]
[391019236,1760292642988,-500.0,0.00027397,60]
[391019237,1760292642998,-500.0,0.00027397,60]
[391019239,1760292643007,-500.0,0.00027397,60]
[391019241,1760292643016,-500.0,0.00027397,60]
[391019243,1760292643026,-500.0,0.00027397,60]
[391019245,1760292643035,-500.0,0.00027397,60]
[391019247,1760292643044,-500.0,0.00027397,60]
[391019249,1760292643053,-500.0,0.00027397,60]
[391019251,1760292643063,-500.0,0.00027397,60]
[391019253,1760292643072,-500.0,0.00027397,60]
[391019255,1760292643081,-500.0,0.00027397,60]
[391019257,1760292643090,-500.0,0.00027397,60]
[391019259,1760292643099,-266.75,0.00027397,60]
[391019261,1760292643108,-500.0,0.00027397,60]
[391019263,1760292643118,-500.0,0.00027397,60]
[391019265,1760292643128,-500.0,0.00027397,60]
[391019267,1760292643137,-500.0,0.00027397,60]
[391019269,1760292643148,-500.0,0.00027397,60]
[391019271,1760292643158,-500.0,0.00027397,60]
[391019273,1760292643167,-500.0,0.00027397,60]
[391019276,1760292643177,-591.15,0.00027397,60]
[391019278,1760292643186,-500.0,0.00027397,60]
[391019280,1760292643196,-500.0,0.00027397,60]
[391019282,1760292643205,-500.0,0.00027397,60]
[391019284,1760292643214,-500.0,0.00027397,60]
[391019286,1760292643225,-500.0,0.00027397,60]
[391019288,1760292643234,-500.0,0.00027397,60]
[391019290,1760292643244,-500.0,0.00027397,60]
[391019292,1760292643253,-500.0,0.00027397,60]
[391019294,1760292643263,-500.0,0.00027397,60]
[391019296,1760292643272,-500.0,0.00027397,60]
[391019298,1760292643281,-500.0,0.00027397,60]
[391019300,1760292643292,-500.0,0.00027397,60]
[391019302,1760292643301,-500.0,0.00027397,60]
[391019304,1760292643311,-500.0,0.00027397,60]
[391019306,1760292643320,-500.0,0.00027397,60]
[391019308,1760292643330,-174.60150046,0.00027397,2]
[391019310,1760292643339,-500.0,0.00027397,2]
[391019312,1760292643351,-500.0,0.00027397,2]
[391019314,1760292643360,-500.0,0.00027397,2]
[391019316,1760292643370,-500.0,0.00027397,2]
[391019318,1760292643381,-500.0,0.00027397,2]
[391019320,1760292643390,-500.0,0.00027397,2]
[391019322,1760292643399,-500.0,0.00027397,2]
[391019324,1760292643418,-500.0,0.00027397,2]
[391019326,1760292643430,-500.0,0.00027397,2]
[391019328,1760292643439,-500.0,0.00027397,2]
[391019330,1760292643449,-500.0,0.00027397,2]
[391019332,1760292643458,-500.0,0.00027397,2]
[391019334,1760292643469,-500.0,0.00027397,2]
[391019336,1760292643479,-500.0,0.00027397,2]
[391019338,1760292643488,-500.0,0.00027397,2]
[391019340,1760292643498,-500.0,0.00027397,2]
[391019342,1760292643507,-437.82,0.00027397,2]
[391019344,1760292643516,-765.12,0.00027397,2]
[391019346,1760292643526,-765.12,0.00027397,2]
[391019348,1760292643536,-765.12,0.00027397,2]
[391019350,1760292643546,-765.12,0.00027397,2]
[391019352,1760292643556,-765.12,0.00027397,2]
[391019354,1760292643565,-765.12,0.00027397,2]
[391019356,1760292643575,-765.12,0.00027397,2]
[391019358,1760292643584,-765.12,0.00027397,2]
[391019360,1760292643593,-765.12,0.00027397,2]
[391019362,1760292643602,-765.12,0.00027397,2]
[391019364,1760292643611,-765.12,0.00027397,2]
[391019366,1760292643621,-765.12,0.00027397,2]
[391019368,1760292643632,-765.12,0.00027397,2]
[391019370,1760292643641,-765.12,0.00027397,2]
[391019372,1760292643652,-765.12,0.00027397,2]
[391019374,1760292643661,-765.12,0.00027397,2]
[391019377,1760292643670,-765.12,0.00027397,2]
[391019378,1760292643679,-765.12,0.00027397,2]
[391019381,1760292643689,-765.12,0.00027397,2]
[391019383,1760292643698,-765.12,0.00027397,2]
[391019385,1760292643707,-765.12,0.00027397,2]
[391019387,1760292643716,-765.12,0.00027397,2]
[391019389,1760292643727,-765.12,0.00027397,2]
[391019390,1760292643737,-765.31034028,0.00027397,2]
[391019393,1760292643747,-1000.0,0.00027397,2]
[391019395,1760292643758,-1000.0,0.00027397,2]
[391019397,1760292643767,-520.0,0.00027397,3]
[391019399,1760292643776,-160.6229769,0.00027397,2]
[391019401,1760292643785,-2089.87,0.000274,2]
[391019403,1760292643794,-815.02028794,0.00027415,7]
[391019405,1760292643803,-11284.51,0.00027445,2]
[391019407,1760292643813,-500.3648731,0.00027473,5]
[391019409,1760292643822,-864.0,0.00027484,30]
[391019411,1760292643831,-71388.13,0.000275,7]
[391019413,1760292643841,-444.706646,0.00027547,60]
[391019415,1760292643853,-168.0,0.00027575,2]
[391019417,1760292643863,-417.15472785,0.000277,7]
[391019419,1760292643872,-155.59679572,0.00027812,15]
[391019421,1760292643883,-150.52,0.00027812,15]
[391019423,1760292643893,-511.0213023,0.00027825,2]
[391019425,1760292643903,-1060.0,0.00027832,2]
[391019427,1760292643912,-187.82826925,0.00027921,5]
[391019429,1760292643922,-823.0,0.00027939,2]
[391019431,1760292643932,-6224.48484196,0.00028,2]
[391019433,1760292643942,-158.845512,0.00028263,2]
[391019435,1760292643951,-2989.5919189,0.00028359,2]
[391019437,1760292643961,-1160.0,0.00028379,2]
[391019439,1760292643971,-539.94703639,0.00028425,2]
[391019441,1760292643981,-2502.26617491,0.00028562,2]
[391019443,1760292643990,-981.0,0.00028648,2]
[391019445,1760292643999,-2160.0,0.00028648,2]
[391019447,1760292644008,-630.0,0.00028648,2]
[391019449,1760292644017,-151.0,0.00028648,30]
[391019451,1760292644026,-261.14056,0.00028648,30]
[391019453,1760292644035,-151.0,0.00028648,30]
[391019455,1760292644044,-151.0,0.00028648,30]
[391019457,1760292644054,-151.0,0.00028648,15]
[391019459,1760292644064,-151.0,0.00028648,15]
[391019461,1760292644073,-2919.0,0.00028658,7]
[391019462,1760292644082,-151.0,0.00028658,30]
[391019463,1760292644091,-151.0,0.00028658,30]
[391019464,1760292644100,-151.0,0.00028658,30]
[391019465,1760292644109,-151.0,0.00028658,30]
[391019466,1760292644118,-151.0,0.00028658,30]
[391019467,1760292644127,-151.0,0.00028658,30]
[391019468,1760292644136,-653.0,0.0002866,2]
[391019469,1760292644153,-151.0,0.00028662,30]
[391019470,1760292644165,-151.0,0.00028662,30]
[391019471,1760292644175,-151.0,0.00028662,30]
[391019472,1760292644185,-151.0,0.00028662,30]
[391019473,1760292644194,-151.0,0.00028662,30]
[391019474,1760292644203,-151.0,0.00028662,30]
[391019475,1760292644213,-151.0,0.00028662,2]
[391019476,1760292644222,-151.0,0.00028662,30]
[391019477,1760292644232,-151.0,0.00028662,30]
[391019478,1760292644242,-151.0,0.00028662,30]
[391019479,1760292644252,-151.0,0.00028662,30]
[391019480,1760292644262,-287.524392,0.00028662,30]
[391019481,1760292644276,-151.0,0.00028662,30]
[391019482,1760292644289,-151.0,0.00028662,30]
[391019483,1760292644299,-151.0,0.00028662,30]
[391019484,1760292644308,-151.0,0.00028662,30]
[391019485,1760292644317,-151.0,0.00028662,30]
[391019486,1760292644326,-151.0,0.00028662,30]
[391019487,1760292644335,-151.0,0.00028662,30]
[391019488,1760292644345,-337.041722,0.00028662,30]
[391019489,1760292644355,-337.041722,0.00028662,30]
[391019490,1760292644364,-337.041722,0.00028662,30]
[391019491,1760292644374,-337.041722,0.00028662,30]
[391019492,1760292644384,-151.0,0.00028662,30]
[391019493,1760292644393,-151.0,0.00028662,30]
[391019494,1760292644402,-151.368245,0.00028662,30]
[391019495,1760292644412,-151.0,0.00028662,30]
[391019496,1760292644421,-151.0,0.00028662,30]
[391019497,1760292644431,-151.0,0.00028662,30]
[391019498,1760292644440,-151.0,0.00028662,30]
[391019500,1760292644448,-151.0,0.00028662,30]
[391019502,1760292644457,-151.0,0.00028662,30]
[391019504,1760292644467,-151.0,0.00028662,30]
[391019506,1760292644477,-151.0,0.00028662,30]
[391019508,1760292644487,-418.359644,0.00028662,30]
[391019510,1760292644497,-418.359644,0.00028662,30]
[391019512,1760292644506,-418.359644,0.00028662,30]
[391019514,1760292644516,-418.359644,0.00028662,30]
[391019516,1760292644525,-151.0,0.00028662,30]
[391019518,1760292644534,-151.0,0.00028662,30]
[391019520,1760292644544,-151.0,0.00028662,30]
[391019522,1760292644553,-151.0,0.00028662,30]
[391019524,1760292644563,-151.0,0.00028662,30]
[391019526,1760292644572,-151.0,0.00028662,30]
[391019528,1760292644582,-157.175538,0.00028662,30]
[391019530,1760292644591,-151.0,0.00028662,30]
[391019532,1760292644602,-151.0,0.00028662,30]
[391019534,1760292644617,-157.175538,0.00028662,30]
[391019536,1760292644627,-151.0,0.00028662,30]
[391019538,1760292644637,-151.0,0.00028662,30]
[391019540,1760292644646,-157.175538,0.00028662,30]
[391019542,1760292644655,-157.175538,0.00028662,30]
[391019544,1760292644664,-151.0,0.00028662,30]
[391019546,1760292644673,-151.0,0.00028662,30]
[391019548,1760292644682,-151.0,0.00028662,30]
[391019550,1760292644692,-151.0,0.00028662,30]
[391019552,1760292644701,-151.0,0.00028662,30]
[391019554,1760292644710,-151.0,0.00028662,30]
[391019556,1760292644719,-151.0,0.00028662,30]
[391019558,1760292644729,-151.0,0.00028662,30]
[391019560,1760292644738,-151.0,0.00028662,30]
[391019561,1760292644747,-151.0,0.00028662,30]
[391019562,1760292644757,-151.0,0.00028662,30]
[391019563,1760292644766,-151.0,0.00028662,30]
[391019564,1760292644775,-200.0,0.00028662,30]
[391019565,1760292644784,-151.0,0.00028662,30]
[391019566,1760292644794,-151.0,0.00028662,30]
[391019567,1760292644803,-151.0,0.00028662,30]
[391019568,1760292644812,-151.0,0.00028662,30]
[391019569,1760292644821,-151.0,0.00028662,30]
[391019570,1760292644831,-151.0,0.00028662,30]
[391019571,1760292644840,-151.0,0.00028662,30]
[391019572,1760292644851,-151.0,0.00028662,30]
[391019573,1760292644862,-151.0,0.00028662,30]
[391019574,1760292644871,-151.0,0.00028662,30]
[391019575,1760292644881,-623.871092,0.00028662,30]
[391019576,1760292644891,-623.871092,0.00028662,30]
[391019577,1760292644900,-623.871092,0.00028662,30]
[391019578,1760292644909,-623.871092,0.00028662,30]
[391019579,1760292644919,-151.0,0.00028662,30]
[391019580,1760292644929,-151.0,0.00028662,30]
[391019581,1760292644940,-151.0,0.00028662,30]
[391019582,1760292644950,-151.0,0.00028662,30]
[391019583,1760292644959,-151.0,0.00028662,30]
[391019584,1760292644970,-151.0,0.00028662,30]
[391019585,1760292644980,-151.0,0.00028662,30]
[391019586,1760292644990,-151.0,0.00028662,30]
[391019587,1760292644999,-738.36200066,0.00028662,5]
[391019588,1760292645010,-1093.88115698,0.00028662,5]
[391019589,1760292645019,-1397.86225306,0.00028662,5]
[391019590,1760292645029,-411.0,0.00028725,2]
[391019591,1760292645039,-411.0,0.00028725,2]
[391019592,1760292645048,-150.0,0.00028733,2]
[391019593,1760292645058,-150.0,0.00028733,2]
[391019594,1760292645068,-150.0,0.00028733,2]
[391019595,1760292645078,-150.0,0.00028733,2]
[391019596,1760292645087,-150.0,0.00028733,2]
[391019597,1760292645096,-653.0,0.00028773,2]
[391019598,1760292645106,-653.0,0.00028893,2]
[391019599,1760292645116,-1260.0,0.00028927,2]
[391019600,1760292645125,-786.3979304,0.00028938,2]
[391019601,1760292645136,-653.0,0.00028957,2]
[391019602,1760292645145,-402.2877588,0.00029,30]
[391019603,1760292645155,-2088.78532203,0.00029,30]
[391019604,1760292645164,-1054.02,0.00029,2]
[391019605,1760292645174,-7112.60961872,0.00029013,2]
[391019606,1760292645183,-568.87277049,0.00029025,2]
[391019607,1760292645192,-165.89343776,0.00029041,120]
[391019608,1760292645201,-1193.342098,0.00029113,2]
[391019609,1760292645210,-653.0,0.00029227,2]
[391019610,1760292645219,-653.0,0.00029235,2]
[391019611,1760292645229,-151.0,0.00029235,30]
[391019612,1760292645238,-151.0,0.00029235,30]
[391019613,1760292645247,-151.0,0.00029235,30]
[391019614,1760292645256,-153.590663,0.00029235,30]
[391019615,1760292645266,-151.0,0.00029235,30]
[391019616,1760292645275,-151.0,0.00029235,30]
[391019617,1760292645285,-151.0,0.00029235,30]
[391019618,1760292645294,-653.0,0.0002927,7]
[391019619,1760292645303,-13541.41,0.00029275,2]
[391019620,1760292645313,-160.0,0.000293,120]
[391019621,1760292645322,-158.845512,0.000294,10]
[391019622,1760292645331,-960.0,0.00029475,2]
[391019623,1760292645341,-2919.0,0.00029525,2]
[391019624,1760292645349,-500.0,0.00029541,60]
[391019625,1760292645359,-653.0,0.00029597,2]
[391019626,1760292645368,-62729.51310485,0.000296,7]
[391019628,1760292645563,-4063.4245101,0.000296,7]
[391019629,1760292645704,-113850.00000001,0.0002196,2]
[391019635,1760292646096,2249.53,0.00020106,2]
[391019658,1760292721655,2077.28,0.00020451,2]
[391019659,1760292733958,165.0,0.00024,120]
[391019660,1760292739793,187.0,0.00020712,3]
[391019664,1760292882092,2050.84,0.00019996,2]
[391019665,1760292963687,1642.7834297,0.00019915,2]
[391019666,1760292963711,381.9565703,0.00019915,2]
[391019667,1760293043162,2093.55,0.00019919,2]
[391019668,1760293051837,161.0,0.00020712,3]
[391019670,1760293129722,2074.48,0.00020256,2]
[391019671,1760293152408,5000.0,0.00020972,2]
[391019673,1760293235620,289.0234297,0.00020867,6]
[391019674,1760293235827,55.02999916,0.00020867,6]
[391019675,1760293254273,160.0,0.00020972,2]
[391019676,1760293272793,1000.0,0.0002092,2]
[391019677,1760293370611,2130.86,0.00020068,2]
[391019679,1760293449606,2103.74,0.00020035,2]
[391019680,1760293523453,4550.38000084,0.00020793,2]
[391019681,1760293523477,2575.57966386,0.00020793,2]
[391019683,1760293614087,151.39283722,0.0002093,2]
[391019684,1760293615811,2076.96,0.00020024,2]
[391019688,1760293691540,2057.95,0.00020065,2]
[391019693,1760293711964,7942.06,0.0002,20]
[391019694,1760293711987,3248.23187839,0.0002,20]
[391019695,1760293712318,367.16071542,0.0002,2]
[391019696,1760293712839,6384.61740619,0.0002,2]
[391019697,1760293712860,10000.01,0.0002,2]
[391019698,1760293712880,10000.01,0.0002,2]
[391019699,1760293712902,10000.01,0.0002,2]
[391019700,1760293712924,10000.01,0.0002,2]
[391019701,1760293712945,10000.01,0.0002,2]
[391019702,1760293712966,10000.01,0.0002,2]
[391019703,1760293712988,10000.01,0.0002,2]
[391019704,1760293713008,10000.01,0.0002,2]
[391019705,1760293713036,28964.3519843,0.0002,2]
[391019707,1760293717675,10000.01,0.0002,2]
[391019708,1760293718390,30000.03,0.0002,2]
[391019710,1760293734412,5000.0,0.00020971,2]
[391019712,1760293771874,2065.63,0.00020081,2]
[391019797,1760293832528,-295.1994616,0.00021101,2]
[391019892,1760293838276,-1849.0546167,0.00021101,2]
[391019893,1760293838285,-243.33313638,0.00021101,2]
[391019894,1760293838296,-1995.0198664,0.00021101,5]
[391019895,1760293838305,-501.44609242,0.000212,2]
[391019897,1760293838314,-1200.0,0.00021388,2]
[391019898,1760293838323,-666.0,0.00021389,2]
[391019899,1760293838332,-279.83310683,0.00021701,2]
[391019900,1760293838342,-1397.41428429,0.000218,2]
[391019901,1760293838351,-1397.41428427,0.00021837,2]
[391019902,1760293838360,-1200.0,0.00021843,2]
[391019903,1760293838369,-300.0,0.00021854,2]
[391019904,1760293838378,-23115.19798365,0.00021873,2]
[391019905,1760293838387,-18698.5203989,0.00021873,2]
[391019906,1760293838396,-1397.41428427,0.00021873,2]
[391019907,1760293838406,-7786.79417836,0.000219,2]
[391019908,1760293838415,-4131.26,0.00021906,2]
[391019909,1760293838424,-1004.78,0.0002195,10]
[391019910,1760293838433,-261.86787694,0.00021959,2]
[391019911,1760293838443,-500.0,0.00021959,2]
[391019912,1760293838452,-400.0,0.00021959,2]
[391019913,1760293838462,-1000.0,0.00021959,2]
[391019914,1760293838473,-999.0,0.00021959,2]
[391019915,1760293838482,-256149.99999999,0.0002196,2]
[391019916,1760293838492,-500.0,0.00021973,2]
[391019917,1760293838502,-500.0,0.00021973,2]
[391019918,1760293838512,-511.63210451,0.0002199,2]
[391019919,1760293838522,-2088.78532203,0.00022,7]
[391019920,1760293838531,-63842.97,0.00022,7]
[391019922,1760293838541,-402.2877588,0.00022,7]
[391019923,1760293838550,-500.0,0.00022,5]
[391019925,1760293838559,-417.15472785,0.00022,7]
[391019926,1760293838569,-160.0,0.00022,7]
[391019927,1760293838578,-6248.69711386,0.00022,5]
[391019929,1760293838588,-999.0,0.00022159,2]
[391019930,1760293838597,-500.0,0.00022274,5]
[391019931,1760293838606,-316.33307729,0.00022301,2]
[391019932,1760293838616,-300.0,0.00022398,20]
[391019933,1760293838626,-300.0,0.00022398,20]
[391019934,1760293838635,-300.0,0.00022398,20]
[391019935,1760293838644,-300.0,0.00022398,20]
[391019936,1760293838654,-300.0,0.00022398,20]
[391019937,1760293838664,-300.0,0.00022398,20]
[391019938,1760293838673,-300.0,0.00022398,20]
[391019939,1760293838683,-300.0,0.00022398,20]
[391019940,1760293838694,-300.0,0.00022398,20]
[391019941,1760293838703,-300.0,0.00022398,20]
[391019942,1760293838712,-300.0,0.00022398,20]
[391019943,1760293838918,-300.0,0.00022398,20]
[391019944,1760293838938,-300.0,0.00022398,20]
[391019945,1760293838948,-300.0,0.00022398,20]
[391019946,1760293838958,-300.0,0.00022398,20]
[391019947,1760293838968,-600.0,0.00022398,20]
[391019948,1760293838977,-1020.08467486,0.000225,2]
[391019949,1760293838986,-1000.0,0.00022521,2]
[391019950,1760293838995,-500.0,0.00022548,5]
[391019951,1760293839004,-2088.78532203,0.000227,7]
[391019952,1760293839014,-402.2877588,0.000227,7]
[391019953,1760293839023,-160.0,0.000227,7]
[391019954,1760293839032,-5020.09319151,0.0002277,2]
[391019955,1760293839044,-500.0,0.00022822,5]
[391019956,1760293839054,-352.83304775,0.00022901,2]
[391019957,1760293839063,-5320.33937604,0.00023,2]
[391019958,1760293839072,-261.7976785,0.00023014,2]
[391019959,1760293839082,-500.0,0.00023096,5]
[391019960,1760293839091,-7786.79417832,0.00023249,2]
[391019961,1760293839100,-500.0,0.00023287,2]
[391019962,1760293839110,-695.33,0.00023329,2]
[391019963,1760293839119,-500.0,0.0002337,5]
[391019964,1760293839129,-1000.0,0.000235,2]
[391019965,1760293839139,-389.3330182,0.00023501,2]
[391019966,1760293839148,-344.0,0.0002353,2]
[391019967,1760293839157,-500.0,0.00023547,2]
[391019968,1760293839167,-500.0,0.00023622,2]
[391019969,1760293839176,-500.0,0.00023644,5]
[391019970,1760293839192,-6196.89,0.00023732,2]
[391019971,1760293839202,-176.0,0.0002374,2]
[391019972,1760293839211,-500.0,0.00023749,2]
[391019973,1760293839222,-420.0,0.00023752,2]
[391019974,1760293839233,-500.0,0.00023773,2]
[391019975,1760293839242,-501.29636073,0.00023773,2]
[391019976,1760293839252,-99519.09479556,0.000238,2]
[391019977,1760293839264,-609.01,0.00023918,5]
[391019978,1760293839273,-872.7417386,0.00023934,2]
[391019979,1760293839284,-24999.98,0.00024,2]
[391019980,1760293839293,-2124.68,0.00024,2]
[391019981,1760293839303,-25000.0,0.00024,2]
[391019982,1760293839312,-160.0,0.00024,7]
[391019983,1760293839322,-1714.7654976,0.00024,2]
[391019984,1760293839332,-163.68869731,0.00024,2]
[391019985,1760293839342,-459.92594446,0.00024,2]
[391019986,1760293839352,-500.0,0.00024013,2]
[391019987,1760293839362,-500.0,0.00024037,2]
[391019988,1760293839372,-217.23489935,0.000241,2]
[391019989,1760293839383,-1243.44876755,0.000241,2]
[391019990,1760293839394,-3859.50144066,0.000241,2]
[391019991,1760293839405,-265.84892803,0.000241,2]
[391019992,1760293839415,-1046.34728074,0.000241,2]
[391019993,1760293839426,-1937.05213614,0.000241,2]
[391019994,1760293839439,-4226.1503862,0.000241,2]
[391019995,1760293839450,-1076.98860821,0.000241,2]
[391019996,1760293839460,-175.97057362,0.000241,2]
[391019997,1760293839469,-425.83298866,0.00024101,2]
[391019998,1760293839479,-160.0,0.00024102,2]
[391019999,1760293839489,-160.0,0.00024103,2]
[391020000,1760293839498,-402.2877588,0.00024104,2]
[391020001,1760293839508,-417.15472785,0.00024104,2]
[391020002,1760293839517,-160.0,0.00024104,2]
[391020003,1760293839526,-2088.78532203,0.00024112,2]
[391020004,1760293839535,-170669.74102468,0.00024142,2]
[391020005,1760293839544,-25000.0,0.0002415,2]
[391020006,1760293839554,-160.0,0.00024163,2]
[391020007,1760293839565,-500.0,0.00024173,2]
[391020008,1760293839574,-510.5718792,0.00024173,2]
[391020009,1760293839584,-500.0,0.00024173,2]
[391020010,1760293839594,-500.0,0.00024173,2]
[391020011,1760293839603,-285.58374622,0.00024173,2]
[391020012,1760293839615,-500.0,0.00024173,2]
[391020013,1760293839625,-217.23489935,0.000243,2]
[391020014,1760293839636,-1243.44876755,0.000243,2]
[391020015,1760293839647,-3859.50144066,0.000243,2]
[391020016,1760293839659,-265.84892803,0.000243,2]
[391020017,1760293839675,-1046.34728074,0.000243,2]
[391020018,1760293839688,-1937.05213614,0.000243,2]
[391020019,1760293839699,-4226.1503862,0.000243,2]
[391020020,1760293839711,-1076.98860821,0.000243,2]
[391020021,1760293839720,-175.97057362,0.000243,2]
[391020022,1760293839731,-25000.0,0.000243,2]
[391020023,1760293839741,-151.0,0.000243,6]
[391020024,1760293839750,-1000.0,0.00024321,2]
[391020025,1760293839760,-500.0,0.00024346,2]
[391020026,1760293839769,-4664.89,0.0002445,2]
[391020027,1760293839779,-665.15374356,0.000245,2]
[391020028,1760293839789,-500.0,0.00024573,2]
[391020029,1760293839800,-500.0,0.00024573,2]
[391020030,1760293839809,-500.0,0.00024573,2]
[391020031,1760293839819,-7786.79417832,0.00024599,2]
[391020033,1760293839828,-1243.44876755,0.000246,2]
[391020035,1760293839837,-3859.50144066,0.000246,2]
[391020037,1760293839846,-265.84892803,0.000246,2]
[391020039,1760293839855,-1046.34728074,0.000246,2]